fUSD/lending_fUSD_20260315
["ID","MTS","AMOUNT","RATE_DAILY","PERIOD"]
[408393647,1773560914471,-500.0,0.00012998,2]
[408393648,1773560914502,-409.14770416,0.00012998,2]
[408393649,1773560914536,-391.891957,0.00012998,2]
[408393650,1773560914566,-494.92864749,0.00012998,2]
[408393651,1773560914596,-500.0,0.00012998,2]
[408393652,1773560914626,-500.0,0.00012998,2]
[408393653,1773560914659,-500.0,0.00012998,2]
[408393654,1773560914687,-500.0,0.00012998,2]
[408393655,1773560914717,-500.0,0.00012998,2]
[408393656,1773560914749,-500.0,0.00012998,2]
[408393657,1773560914983,-500.0,0.00012998,2]
[408393658,1773560915011,-474.551625,0.00012998,2]
[408393659,1773560915040,-457.80118181,0.00012998,2]
[408393660,1773560915074,-500.0,0.00012998,2]
[408393661,1773560915103,-270.13609509,0.00012998,2]
[408393662,1773560915132,-500.0,0.00012998,2]
[408393663,1773560915166,-500.0,0.00012998,2]
[408393664,1773560915199,-500.0,0.00012998,2]
[408393665,1773560915231,-500.0,0.00012998,2]
[408393666,1773560915261,-500.0,0.00012998,2]
[408393667,1773560915289,-95.0321962,0.00012998,2]
[408393668,1773560915408,-404.9678038,0.00012998,2]
[408393669,1773560915442,-500.0,0.00012998,2]
[408393670,1773560915474,-500.0,0.00012998,2]
[408393671,1773560915506,-500.0,0.00012998,2]
[408393672,1773560915538,-500.0,0.00012998,2]
[408393673,1773560915570,-500.0,0.00012998,2]
[408393674,1773560915598,-500.0,0.00012998,2]
[408393675,1773560915628,-500.0,0.00012998,2]
[408393676,1773560915659,-500.0,0.00012998,2]
[408393677,1773560915688,-500.0,0.00012998,2]
[408393678,1773560915749,-500.0,0.00012998,2]
[408393679,1773560915781,-500.0,0.00012998,2]
[408393680,1773560915812,-500.0,0.00012998,2]
[408393681,1773560915844,-500.0,0.00012998,2]
[408393682,1773560915878,-500.0,0.00012998,2]
[408393683,1773560915909,-500.0,0.00012998,2]
[408393684,1773560915941,-500.0,0.00012998,2]
[408393685,1773560915969,-500.0,0.00012998,2]
[408393686,1773560916001,-500.0,0.00012998,2]
[408393687,1773560916032,-500.0,0.00012998,2]
[408393688,1773560916108,-500.0,0.00012998,2]
[408393689,1773560916140,-500.0,0.00012998,2]
[408393690,1773560916170,-500.0,0.00012998,2]
[408393691,1773560916200,-500.0,0.00012998,2]
[408393692,1773560916230,-500.0,0.00012998,2]
[408393693,1773560916261,-500.0,0.00012998,2]
[408393694,1773560916292,-500.0,0.00012998,2]
[408393695,1773560916328,-500.0,0.00012998,2]
[408393696,1773560916363,-500.0,0.00012998,2]
[408393697,1773560916395,-500.0,0.00012998,2]
[408393698,1773560917312,-249.40414009,0.00012998,2]
[408393699,1773560917326,-250.59585991,0.00012998,2]
[408393700,1773560917335,-249.40414009,0.00012998,2]
[408393701,1773560917350,-0.01,0.00012998,2]
[408393702,1773560917418,-250.58585991,0.00012998,2]
[408393703,1773560917451,-500.0,0.00012998,2]
[408393704,1773560917487,-500.0,0.00012998,2]
[408393705,1773560917521,-500.0,0.00012998,2]
[408393706,1773560917556,-500.0,0.00012998,2]
[408393707,1773560917587,-467.80827143,0.00012998,2]
[408393708,1773560917618,-500.0,0.00012998,2]
[408393709,1773560917650,-500.0,0.00012998,2]
[408393710,1773560917679,-500.0,0.00012998,2]
[408393711,1773560917969,622.40604076,0.00012899,2]
[408393712,1773560921250,940.81569656,0.000102,5]
[408393713,1773560921271,4592.18430344,0.000102,5]
[408393714,1773560921480,5407.82569656,0.000101,3]
[408393715,1773560921510,125.17430344,0.000101,3]
[408393716,1773560921701,37921.0,0.0001,2]
[408393717,1773560945164,162.0,0.00012719,2]
[408393718,1773560964870,332.298048,0.00012463,2]
[408393719,1773560967602,167.91,0.00012664,2]
[408393720,1773560968932,167.91,0.00012664,2]
[408393721,1773560989885,881.46,6.217e-05,2]
[408393722,1773560990103,881.46,6.544e-05,2]
[408393723,1773560990301,881.46,6.871e-05,2]
[408393724,1773560990740,881.46,7.199e-05,2]
[408393725,1773560990950,881.46,7.526e-05,2]
[408393726,1773560991146,473.060692,7.853e-05,2]
[408393727,1773560991170,408.399308,7.853e-05,2]
[408393728,1773560991348,881.46,8.18e-05,2]
[408393729,1773560991545,881.46,8.507e-05,2]
[408393730,1773560991741,881.46,8.835e-05,2]
[408393731,1773560991955,881.46,9.162e-05,2]
[408393732,1773560992160,881.46,9.489e-05,2]
[408393733,1773560992356,881.46,9.816e-05,2]
[408393734,1773560992552,881.46,0.00010143,2]
[408393735,1773560992751,881.46,0.00010471,2]
[408393736,1773560993100,881.46,0.00010798,2]
[408393737,1773560993194,881.46,0.00011125,2]
[408393738,1773560993399,777.010692,0.00011452,2]
[408393739,1773560993423,104.449308,0.00011452,2]
[408393740,1773560993604,881.46,0.0001178,2]
[408393741,1773560993912,881.46,0.00012107,2]
[408393742,1773560994321,881.46,0.00012434,2]
[408393745,1773561023784,163.227338,0.00012415,2]
[408393746,1773561031608,-162.0,0.00012499,2]
[408393747,1773561031618,-160.0,0.00012499,2]
[408393748,1773561031628,-893.94039751,0.00012899,2]
[408393749,1773561031637,-256.0,0.00012899,2]
[408393750,1773561031647,-1292.96445275,0.00012989,2]
[408393751,1773561031659,-2454.25531392,0.00012989,2]
[408393752,1773561031671,-1171.1262929,0.00012989,2]
[408393753,1773561031708,-952.0,0.00012989,2]
[408393754,1773561031757,-7288.05519673,0.00012989,2]
[408393755,1773561031767,-202.55847327,0.00012989,2]
[408393756,1773561031776,-300.0,0.00012997,2]
[408393757,1773561031786,-1200.0,0.00012997,2]
[408393758,1773561031795,-2086.90812367,0.00012998,2]
[408393759,1773561031805,-508.50560494,0.00012998,2]
[408393760,1773561031814,-508.50560494,0.00012998,2]
[408393761,1773561031823,-508.50560494,0.00012998,2]
[408393762,1773561031832,-508.50560494,0.00012998,2]
[408393763,1773561031842,-508.50560494,0.00012998,2]
[408393764,1773561031851,-508.50560494,0.00012998,2]
[408393765,1773561031860,-508.50560494,0.00012998,2]
[408393766,1773561031870,-508.50560494,0.00012998,2]
[408393767,1773561031879,-508.50560494,0.00012998,2]
[408393769,1773561031889,-508.50560494,0.00012998,2]
[408393771,1773561031898,-508.50560494,0.00012998,2]
[408393773,1773561031908,-508.50560494,0.00012998,2]
[408393775,1773561031917,-508.50560494,0.00012998,2]
[408393777,1773561031926,-508.50560494,0.00012998,2]
[408393779,1773561031936,-508.50560494,0.00012998,2]
[408393781,1773561031946,-508.50560494,0.00012998,2]
[408393782,1773561031955,-13876.990089,0.00012998,2]
[408393784,1773561031965,-218496.2315342,0.00012999,2]
[408393787,1773561031977,-9048.9288519,0.00012999,2]
[408393789,1773561031988,-5690.50637498,0.00012999,2]
[408393800,1773561037704,-268.661,0.00012956,2]
[408393801,1773561037713,-422.92545727,0.00012999,2]
[408393802,1773561037830,-398821.77120931,0.00012999,2]
[408393803,1773561037840,-157.56081774,0.00012999,2]
[408393804,1773561037849,-26672.7559219,0.00012999,2]
[408393805,1773561037861,-579.26001561,0.00012999,2]
[408393806,1773561037873,-1872.66576147,0.00012999,2]
[408393807,1773561037957,-713.43770816,0.00012999,2]
[408393809,1773561039962,-71508.00000001,0.00012999,2]
[408393810,1773561039974,-26796.87553852,0.00012999,2]
[408393811,1773561040198,-749.72188916,0.00012999,2]
[408393812,1773561040210,-10574.27472728,0.00012999,2]
[408393813,1773561040222,-372.16180942,0.00012999,2]
[408393829,1773561042936,-200.0,0.000128,4]
[408393830,1773561042953,-400.0,0.000129,4]
[408393831,1773561042965,-502.47176296,0.00012999,2]
[408393832,1773561042983,-143209.99999998,0.00012999,2]
[408393858,1773561046011,-11923.42921974,0.00012999,2]
[408393859,1773561046022,-3983.65,0.00012999,2]
[408393861,1773561063666,338.0,0.00011019,2]
[408393862,1773561064526,338.0,0.00011679,2]
[408393863,1773561065102,338.41645489,0.00012263,2]
[408393867,1773561074452,-651.20912629,0.00012899,2]
[408393868,1773561074487,-500.0,0.00012973,2]
[408393869,1773561074521,-500.0,0.00012973,2]
[408393870,1773561074552,-500.0,0.00012973,2]
[408393871,1773561074581,-195.85801885,0.00012973,2]
[408393872,1773561074976,-305.87570972,0.00012973,2]
[408393873,1773561075004,-500.0,0.00012973,2]
[408393874,1773561075032,-500.0,0.00012973,2]
[408393875,1773561075063,-500.0,0.00012973,2]
[408393876,1773561075089,-429.01401913,0.00012973,2]
[408393877,1773561075117,-83.76585403,0.00012973,2]
[408393878,1773561077406,-362.69883424,0.00012973,2]
[408393879,1773561077434,-500.0,0.00012973,2]
[408393880,1773561077461,-332.58199131,0.00012973,2]
[408393881,1773561077491,-500.0,0.00012973,2]
[408393882,1773561077521,-151.0,0.00012996,2]
[408393883,1773561077551,-151.0,0.00012996,2]
[408393884,1773561077580,-151.0,0.00012996,2]
[408393885,1773561077916,-2092.6080593,0.00012998,2]
[408393886,1773561080374,-814.7938814,0.00012998,2]
[408393887,1773561080404,-300.0,0.00012998,2]
[408393888,1773561080432,-300.0,0.00012998,2]
[408393889,1773561080461,-150.0,0.00012998,2]
[408393890,1773561093197,1870.4222372,0.00012739,2]
[408393891,1773561093221,988.9877628,0.00012739,2]
[408393892,1773561093260,178.195,0.00012739,2]
[408393893,1773561121573,300.0,0.00012998,2]
[408393894,1773561130364,151.0,0.00012996,2]
[408393895,1773561153779,3381.8272372,0.00012899,2]
[408393896,1773561153802,5000.01,0.00012899,2]
[408393897,1773561177715,10000.01,0.00012799,2]
[408393898,1773561178174,-3616.74894459,0.00012799,2]
[408393899,1773561181204,-1977.63026942,0.00012799,2]
[408393900,1773561181240,-1044.74946116,0.00012899,2]
[408393901,1773561181416,-300.0,0.00012898,2]
[408393902,1773561181449,-4400.01,0.00012899,2]
[408393903,1773561182910,-265.838438,0.00012463,2]
[408393904,1773561184087,-5000.01,0.00012899,2]
[408393905,1773561184201,-5000.01,0.00012899,2]
[408393906,1773561187285,-5000.01,0.00012899,2]
[408393907,1773561193177,-5000.01,0.00012899,2]
[408393908,1773561195419,179.77,9.895e-05,2]
[408393909,1773561195603,179.77,0.00010885,2]
[408393910,1773561195796,179.77,0.00011874,2]
[408393911,1773561246668,162.0,0.00012499,2]
[408393912,1773561253175,-300.0,0.000128,4]
[408393913,1773561264161,1852.42,0.00012148,2]
[408393914,1773561289666,-161.13790646,0.00012799,2]
[408393915,1773561299213,4986.01012362,0.00012799,2]
[408393916,1773561306022,160.0,0.00012799,3]
[408393917,1773561315485,500.0,0.0001237,2]
[408393918,1773561321090,-162.0,0.00012799,3]
[408393919,1773561321881,9676.01,0.00012114,2]
[408393920,1773561321911,10000.01,0.00012114,2]
[408393921,1773561321950,10000.01,0.00012114,2]
[408393922,1773561321974,10000.01,0.00012114,2]
[408393923,1773561321998,10000.01,0.00012114,2]
[408393924,1773561322023,10000.01,0.00012114,2]
[408393925,1773561322046,9500.01,0.00012114,2]
[408393926,1773561322071,10000.01,0.00012114,2]
[408393927,1773561322096,10000.01,0.00012114,2]
[408393928,1773561322119,10000.01,0.00012114,2]
[408393929,1773561322140,10000.01,0.00012114,2]
[408393930,1773561322160,10000.01,0.00012114,2]
[408393931,1773561322182,10000.01,0.00012114,2]
[408393932,1773561322210,10000.01,0.00012114,2]
[408393933,1773561322235,10000.01,0.00012114,2]
[408393934,1773561322257,10000.01,0.00012114,2]
[408393935,1773561322278,4838.01,0.00012114,2]
[408393936,1773561322299,5000.01,0.00012114,2]
[408393937,1773561337016,-606.2950467,0.00012114,2]
[408393938,1773561337154,-10000.01,0.00012114,2]
[408393939,1773561337294,-10000.01,0.00012114,2]
[408393940,1773561339278,-10000.01,0.00012114,2]
[408393941,1773561339664,-10000.01,0.00012114,2]
[408393942,1773561339776,-10000.01,0.00012114,2]
[408393943,1773561339900,-10000.01,0.00012114,2]
[408393944,1773561339991,-10000.01,0.00012114,2]
[408393945,1773561345247,-10000.01,0.00012114,2]
[408393946,1773561345368,-10000.01,0.00012114,2]
[408393947,1773561363280,-10000.01,0.00012114,2]
[408393948,1773561363410,-10000.01,0.00012114,2]
[408393949,1773561363597,-10000.01,0.00012114,2]
[408393950,1773561363738,-10000.01,0.00012114,2]
[408393951,1773561363903,-10000.01,0.00012114,2]
[408393952,1773561375353,-4334.349834,0.00012053,2]
[408393953,1773561375379,-1331.310332,0.00012053,2]
[408393954,1773561382848,-10000.01,0.00012114,2]
[408393955,1773561389644,-5000.01,0.00012114,2]
[408393956,1773561389776,-5000.01,0.00012114,2]
[408393957,1773561389902,-5000.01,0.00012114,2]
[408393958,1773561390020,-5000.01,0.00012114,2]
[408393959,1773561390114,-5000.01,0.00012114,2]
[408393960,1773561390477,-5000.01,0.00012114,2]
[408393961,1773561390518,-5000.01,0.00012114,2]
[408393962,1773561392332,-5000.01,0.00012114,2]
[408393963,1773561392347,-5000.01,0.00012114,2]
[408393964,1773561404406,-200.0,0.000121,2]
[408393965,1773561404438,-1267.69,0.00012113,2]
[408393966,1773561404477,-2064.63,0.00012113,2]
[408393967,1773561407433,-5000.01,0.00012114,2]
[408393968,1773561410325,-5000.01,0.00012114,2]
[408393969,1773561416363,-5000.01,0.00012114,2]
[408393970,1773561433588,889.15,0.00011978,2]
[408393971,1773561444001,1238.0,0.000102,5]
[408393972,1773561488241,150.0,0.00011984,2]
[408393973,1773561493332,159.0,0.00011984,2]
[408393974,1773561496742,-200.0,0.00012,2]
[408393975,1773561496768,-252.15306029,0.00012026,2]
[408393976,1773561496789,-3362.8592,0.00012053,2]
[408393977,1773561496811,-1184.98773971,0.00012114,2]
[408393978,1773561498225,-4479.60721359,0.00012114,2]
[408393979,1773561498247,-194.57847078,0.00012114,2]
[408393980,1773561498268,-232.895054,0.00012255,2]
[408393981,1773561498290,-92.91926163,0.00012456,2]
[408393982,1773561499377,-207.08073837,0.00012456,2]
[408393983,1773561499398,-300.0,0.00012456,2]
[408393984,1773561499420,-4492.91926163,0.00012457,2]
[408393985,1773561500615,-507.08073837,0.00012457,2]
[408393986,1773561500642,-150.0,0.00012569,3]
[408393987,1773561500664,-4342.91926163,0.0001271,2]
[408393988,1773561501695,-332.70892408,0.0001271,2]
[408393989,1773561501718,-4667.29107592,0.00012798,2]
[408393990,1773561502821,-2088.06232408,0.00012798,2]
[408393991,1773561502842,-150.0,0.00012798,2]
[408393992,1773561502862,-1000.0,0.00012799,2]
[408393993,1773561502882,-1761.93767592,0.00012799,2]
[408393994,1773561503455,-5000.0,0.00012799,2]
[408393995,1773561503962,-5000.0,0.00012799,2]
[408393996,1773561504502,-5000.0,0.00012799,2]
[408393997,1773561505064,-5000.0,0.00012799,2]
[408393998,1773561505722,-5000.0,0.00012799,2]
[408393999,1773561506187,-5000.0,0.00012799,2]
[408394000,1773561506852,-5000.0,0.00012799,2]
[408394001,1773561507170,-5000.0,0.00012799,2]
[408394002,1773561508669,-5000.0,0.00012799,2]
[408394003,1773561509640,-5000.0,0.00012799,2]
[408394004,1773561510159,-4014.39312408,0.00012799,2]
[408394005,1773561510181,-200.0,0.000128,4]
[408394006,1773561510204,-200.0,0.000128,4]
[408394007,1773561510224,-179.77,0.00012864,2]
[408394008,1773561510256,-228.0,0.0001287,2]
[408394009,1773561510279,-177.83687592,0.00012873,2]
[408394010,1773561510828,-322.16312408,0.00012873,2]
[408394011,1773561510850,-500.0,0.00012873,2]
[408394012,1773561510872,-164.0673989,0.00012873,2]
[408394013,1773561510895,-164.87924349,0.00012873,2]
[408394014,1773561510917,-167.29671694,0.00012873,2]
[408394015,1773561510939,-500.0,0.00012873,2]
[408394016,1773561510960,-167.26510241,0.00012873,2]
[408394017,1773561510981,-500.0,0.00012873,2]
[408394018,1773561511002,-500.0,0.00012873,2]
[408394019,1773561511023,-500.0,0.00012873,2]
[408394020,1773561511044,-500.0,0.00012873,2]
[408394021,1773561511066,-500.0,0.00012873,2]
[408394022,1773561511087,-500.0,0.00012873,2]
[408394023,1773561511110,-14.32841418,0.00012873,2]
[408394024,1773561511209,-485.67158582,0.00012873,2]
[408394025,1773561511233,-500.0,0.00012873,2]
[408394026,1773561511257,-500.0,0.00012873,2]
[408394027,1773561511279,-500.0,0.00012873,2]
[408394028,1773561511301,-219.56979129,0.00012873,2]
[408394029,1773561511322,-500.0,0.00012873,2]
[408394030,1773561511342,-1361.0,0.00012884,2]
[408394031,1773561511364,-500.0,0.00012884,2]
[408394032,1773561511384,-323.0,0.00012895,2]
[408394033,1773561511409,-110.75862289,0.00012896,2]
[408394034,1773561511880,-44.33828829,0.00012896,2]
[408394035,1773561511903,-151.0,0.00012896,2]
[408394036,1773561511927,-151.0,0.00012896,2]
[408394037,1773561511955,-151.0,0.00012896,2]
[408394038,1773561511979,-500.0,0.00012898,2]
[408394039,1773561512001,-500.0,0.00012898,2]
[408394040,1773561512023,-201.75314085,0.00012898,2]
[408394041,1773561512048,-500.0,0.00012898,2]
[408394042,1773561512072,-500.0,0.00012898,2]
[408394043,1773561512093,-150.48233208,0.00012898,2]
[408394044,1773561512118,-500.0,0.00012898,2]
[408394045,1773561512143,-500.0,0.00012898,2]
[408394046,1773561512167,-500.0,0.00012898,2]
[408394047,1773561512194,-500.0,0.00012898,2]
[408394048,1773561512218,-150.42623878,0.00012898,2]
[408394049,1773561512391,-349.57376122,0.00012898,2]
[408394050,1773561512419,-500.0,0.00012898,2]
[408394051,1773561512445,-500.0,0.00012898,2]
[408394052,1773561512470,-500.0,0.00012898,2]
[408394053,1773561512495,-500.0,0.00012898,2]
[408394054,1773561512522,-500.0,0.00012898,2]
[408394055,1773561512548,-500.0,0.00012898,2]
[408394056,1773561512573,-500.0,0.00012898,2]
[408394057,1773561512597,-500.0,0.00012898,2]
[408394058,1773561512621,-500.0,0.00012898,2]
[408394059,1773561512648,-150.42623878,0.00012898,2]
[408394060,1773561512797,-349.57376122,0.00012898,2]
[408394061,1773561512823,-500.0,0.00012898,2]
[408394062,1773561512847,-500.0,0.00012898,2]
[408394063,1773561512873,-500.0,0.00012898,2]
[408394064,1773561512898,-500.0,0.00012898,2]
[408394065,1773561512922,-500.0,0.00012898,2]
[408394066,1773561512945,-389.41420967,0.00012898,2]
[408394067,1773561512969,-500.0,0.00012898,2]
[408394068,1773561512992,-500.0,0.00012898,2]
[408394069,1773561513015,-500.0,0.00012898,2]
[408394070,1773561513039,-261.01202911,0.00012898,2]
[408394071,1773561513363,-238.98797089,0.00012898,2]
[408394072,1773561513389,-500.0,0.00012898,2]
[408394073,1773561513412,-500.0,0.00012898,2]
[408394074,1773561513433,-529.4068387,0.00012898,2]
[408394075,1773561513455,-500.0,0.00012898,2]
[408394076,1773561513476,-273.24524423,0.00012898,2]
[408394077,1773561513502,-500.0,0.00012898,2]
[408394078,1773561513526,-500.0,0.00012898,2]
[408394079,1773561513562,-500.0,0.00012898,2]
[408394080,1773561513588,-500.0,0.00012898,2]
[408394081,1773561513614,-458.35994618,0.00012898,2]
[408394082,1773561514038,-41.64005382,0.00012898,2]
[408394083,1773561514063,-248.29520555,0.00012898,2]
[408394084,1773561514087,-500.0,0.00012898,2]
[408394085,1773561514110,-1200.0,0.00012898,2]
[408394086,1773561514131,-1142.02,0.00012898,2]
[408394087,1773561514154,-1868.04474063,0.00012899,2]
[408394088,1773561515967,-1200.0,0.00012872,2]
[408394089,1773561515991,-3800.0,0.00012899,2]
[408394090,1773561516841,-5000.0,0.00012899,2]
[408394091,1773561518600,-5000.0,0.00012899,2]
[408394092,1773561519999,-5000.0,0.00012899,2]
[408394093,1773561522865,-5000.0,0.00012899,2]
[408394094,1773561524559,-5000.0,0.00012899,2]
[408394095,1773561567297,1033.39853088,0.000108,2]
[408394096,1773561605735,150.0,0.00011989,2]
[408394099,1773561606761,161.0,0.00011989,2]
[408394100,1773561608430,500.0,0.00011908,2]
[408394101,1773561619615,-4334.10028742,0.0001199,2]
[408394102,1773561624825,-1331.80942516,0.0001199,2]
[408394103,1773561624858,-248.0,0.0001199,2]
[408394104,1773561624888,-1416.6,0.000122,2]
[408394105,1773561625018,-1058.45204396,0.00012349,2]
[408394106,1773561630921,-4779.79365026,0.00012349,2]
[408394107,1773561630963,-440.42269948,0.0001268,2]
[408394108,1773561666162,150.0,0.00011983,2]
[408394109,1773561671378,205.0,9.8e-05,2]
[408394110,1773561675419,261.17419538,0.000101,2]
[408394111,1773561696201,1000.0,0.00011983,2]
[408394112,1773561717928,1000.0,0.00011983,2]
[408394113,1773561726608,150.0,0.00011983,2]
[408394114,1773561736446,1941.76027779,0.0001,2]
[408394115,1773561738206,393.44809754,7.888e-05,2]
[408394116,1773561747930,468.7728865,0.0001,2]
[408394118,1773561757047,5046.02873817,9.5e-05,3]
[408394119,1773561757070,10000.01,9.5e-05,3]
[408394120,1773561757094,10000.01,9.5e-05,3]
[408394121,1773561757118,10000.01,9.5e-05,3]
[408394122,1773561757140,10000.01,9.5e-05,3]
[408394123,1773561757164,10000.01,9.5e-05,3]
[408394124,1773561757186,10000.01,9.5e-05,3]
[408394125,1773561757208,10000.01,9.5e-05,3]
[408394126,1773561757231,10000.01,9.5e-05,3]
[408394127,1773561757252,10000.01,9.5e-05,3]
[408394128,1773561757273,5000.01,9.5e-05,3]
[408394129,1773561757295,5000.01,9.5e-05,3]
[408394130,1773561757316,5000.01,9.5e-05,3]
[408394131,1773561757338,5000.01,9.5e-05,3]
[408394132,1773561757358,5000.01,9.5e-05,3]
[408394133,1773561757378,5000.01,9.5e-05,3]
[408394134,1773561757399,5000.01,9.5e-05,3]
[408394135,1773561757420,5000.01,9.5e-05,3]
[408394136,1773561757441,5000.01,9.5e-05,3]
[408394137,1773561757462,5000.01,9.5e-05,3]
[408394138,1773561757490,610251.7089703,9.5e-05,3]
[408394139,1773561757542,10213.54105597,0.0001,2]
[408394140,1773561759302,347.99093823,0.0001,2]
[408394141,1773561782280,885.0,0.000102,5]
[408394142,1773561784779,150.0,0.00011983,2]
[408394143,1773561811684,10000.01,0.00011892,2]
[408394144,1773561811711,4464.45,0.00011892,2]
[408394145,1773561844196,5533.0,0.000102,5]
[408394146,1773561845990,2.56,0.00011988,2]
[408394147,1773561846014,149.44,0.00011988,2]
[408394148,1773561847547,1304.050455,7.945e-05,2]
[408394149,1773561870459,167.91,0.00011501,2]
[408394150,1773561870917,167.91,0.00011501,2]
[408394151,1773561873175,492.18257786,0.0002,120]
[408394152,1773561908314,731.928818,7.945e-05,2]
[408394153,1773561938792,-166.66,0.00012027,2]
[408394154,1773561938901,-239.377726,0.00012027,2]
[408394155,1773561938989,-370.40017,0.00012027,2]
[408394156,1773561939076,-311.06161486,0.00012027,2]
[408394157,1773561939103,-188.93838514,0.00012097,2]
[408394158,1773561939161,-500.0,0.00012097,2]
[408394159,1773561968171,1650.0,7.945e-05,2]
[408394160,1773562090984,3536.6,0.00011892,2]
[408394161,1773562147913,3968.07631,7.945e-05,2]
[408394162,1773562152123,-393.975378,0.00011993,2]
[408394163,1773562152143,-5000.0,0.00012026,2]
[408394164,1773562152163,-342.13655433,0.00012059,2]
[408394165,1773562184950,6031.93369,0.00011987,2]
[408394166,1773562184972,896.33274,0.00011987,2]
[408394169,1773562228648,388.019699,0.00011977,2]
[408394178,1773562231905,-553.57311163,0.00012048,2]
[408394179,1773562231916,-249.0,0.00012048,2]
[408394180,1773562231926,-3665.8456892,0.00012055,2]
[408394181,1773562231937,-987.95536,0.00012055,2]
[408394182,1773562231948,-869.66570832,0.00012055,2]
[408394183,1773562231960,-762.22450227,0.00012055,2]
[408394184,1773562231979,-36352.55874021,0.00012055,2]
[408394185,1773562231989,-5000.0,0.00012085,2]
[408394186,1773562231998,-218.95629112,0.0001212,2]
[408394187,1773562232007,-1200.0,0.00012125,2]
[408394188,1773562232016,-1200.0,0.00012126,2]
[408394189,1773562232026,-300.0,0.00012126,2]
[408394190,1773562232035,-300.0,0.00012126,2]
[408394191,1773562232045,-212.0,0.00012126,2]
[408394192,1773562232054,-578.98006873,0.000124,2]
[408394193,1773562232064,-250.0,0.00012504,2]
[408394194,1773562232074,-14319.4304604,0.0001259,2]
[408394195,1773562232083,-10000.0,0.00012598,2]
[408394196,1773562232092,-2500.0,0.00012598,2]
[408394197,1773562232102,-1900.0,0.000126,4]
[408394198,1773562232111,-217.33017447,0.000126,2]
[408394199,1773562232121,-2276.87937694,0.000126,2]
[408394200,1773562232131,-14300.48172721,0.000126,2]
[408394201,1773562232140,-6831.8015025,0.000126,2]
[408394202,1773562232150,-392.0,0.00012607,2]
[408394203,1773562232160,-1716.53049357,0.00012612,2]
[408394204,1773562232169,-394.45592304,0.00012624,2]
[408394205,1773562232178,-150.0,0.00012624,2]
[408394206,1773562232188,-16029.73109475,0.00012625,2]
[408394207,1773562232197,-219.0,0.00012632,2]
[408394208,1773562232206,-500.0,0.00012673,2]
[408394209,1773562232216,-501.05485171,0.00012673,2]
[408394210,1773562232225,-500.0,0.00012673,2]
[408394211,1773562232235,-500.0,0.00012673,2]
[408394212,1773562232245,-500.0,0.00012673,2]
[408394213,1773562232255,-500.0,0.00012673,2]
[408394214,1773562232265,-500.0,0.00012673,2]
[408394215,1773562232274,-503.3456058,0.00012673,2]
[408394216,1773562232283,-501.57053664,0.00012673,2]
[408394217,1773562232293,-500.0,0.00012673,2]
[408394218,1773562232302,-367.69641233,0.00012673,2]
[408394219,1773562232311,-500.0,0.00012673,2]
[408394220,1773562232320,-500.56434251,0.00012673,2]
[408394221,1773562232330,-500.0,0.00012673,2]
[408394222,1773562232339,-500.0,0.00012673,2]
[408394223,1773562232349,-232.62078059,0.00012688,2]
[408394224,1773562232358,-500.0,0.00012697,2]
[408394225,1773562232368,-419.37090252,0.00012697,2]
[408394226,1773562232377,-169.46580286,0.00012697,2]
[408394227,1773562232387,-500.0,0.00012697,2]